fUST/lending_fUST_20240814
["ID","MTS","AMOUNT","RATE_DAILY","PERIOD"]
[334890298,1723627852146,-220.590017,0.00014247,2]
[334890299,1723627852156,-3200.0,0.00014249,2]
[334890300,1723627852165,-150.0,0.00014293,2]
[334890301,1723627852175,-520.0,0.00014293,2]
[334890302,1723627852184,-1413.0,0.00014293,2]
[334890303,1723627852193,-500.0,0.0001452,2]
[334890304,1723627852203,-784.93,0.0001452,2]
[334890305,1723627852213,-417.40270854,0.0001452,2]
[334890306,1723627852223,-500.0,0.0001452,2]
[334890307,1723627852233,-500.0,0.0001452,2]
[334890308,1723627852242,-500.0,0.0001452,2]
[334890309,1723627852253,-611.98,0.0001452,2]
[334890310,1723627852263,-561.51,0.0001452,2]
[334890311,1723627852273,-500.0,0.0001452,2]
[334890312,1723627852282,-1014.19,0.0001452,2]
[334890313,1723627852291,-500.0,0.0001452,2]
[334890314,1723627852301,-500.0,0.0001452,2]
[334890315,1723627852311,-500.0,0.0001452,2]
[334890316,1723627852322,-693.95,0.0001452,2]
[334890317,1723627852331,-500.0,0.0001452,2]
[334890318,1723627852340,-500.0,0.0001452,2]
[334890319,1723627852350,-500.0,0.0001452,2]
[334890320,1723627852360,-500.0,0.0001452,2]
[334890321,1723627852372,-500.0,0.0001452,2]
[334890322,1723627852382,-500.0,0.0001452,2]
[334890323,1723627852392,-500.0,0.0001452,2]
[334890324,1723627852401,-500.0,0.0001452,2]
[334890325,1723627852411,-500.0,0.0001452,2]
[334890326,1723627852422,-500.0,0.0001452,2]
[334890327,1723627852432,-562.6,0.0001452,2]
[334890328,1723627852441,-500.0,0.0001452,2]
[334890329,1723627852451,-500.0,0.0001452,2]
[334890330,1723627852460,-500.0,0.0001452,2]
[334890331,1723627852470,-500.0,0.0001452,2]
[334890332,1723627852480,-500.0,0.0001452,2]
[334890333,1723627852491,-500.0,0.0001452,2]
[334890334,1723627852502,-502.04033354,0.0001452,2]
[334890335,1723627852512,-500.0,0.0001452,2]
[334890336,1723627852521,-500.0,0.0001452,2]
[334890337,1723627852530,-507.81619924,0.0001452,2]
[334890338,1723627852540,-500.0,0.0001452,2]
[334890339,1723627852552,-500.0,0.0001452,2]
[334890340,1723627852563,-2358.64,0.0001452,2]
[334890341,1723627852572,-500.0,0.0001452,2]
[334890342,1723627852581,-500.0,0.0001452,2]
[334890343,1723627852592,-500.0,0.0001452,2]
[334890344,1723627852602,-834.05,0.0001452,2]
[334890345,1723627852613,-759.51,0.0001452,2]
[334890346,1723627852623,-500.0,0.0001452,2]
[334890347,1723627852632,-500.0,0.0001452,2]
[334890348,1723627852641,-507.15467518,0.0001452,2]
[334890349,1723627852651,-925.56,0.0001452,2]
[334890350,1723627852660,-500.0,0.0001452,2]
[334890351,1723627852670,-864.82,0.0001452,2]
[334890352,1723627852679,-568.31,0.0001452,2]
[334890353,1723627852689,-500.0,0.0001452,2]
[334890354,1723627852698,-500.0,0.0001452,2]
[334890355,1723627852707,-822.07,0.0001452,2]
[334890356,1723627852718,-1032.84,0.0001452,2]
[334890357,1723627852728,-500.0,0.0001452,2]
[334890358,1723627852737,-969.54,0.0001452,2]
[334890359,1723627852746,-500.0,0.0001452,2]
[334890360,1723627852756,-3616.69,0.0001452,2]
[334890361,1723627852765,-500.0,0.0001452,2]
[334890362,1723627852774,-500.0,0.0001452,2]
[334890363,1723627852784,-500.0,0.0001452,2]
[334890364,1723627852793,-500.0,0.0001452,2]
[334890365,1723627852802,-500.0,0.0001452,2]
[334890366,1723627852815,-506.29888616,0.0001452,2]
[334890367,1723627852824,-831.63,0.0001452,2]
[334890368,1723627852834,-500.0,0.0001452,2]
[334890369,1723627852844,-803.68,0.0001452,2]
[334890370,1723627852855,-512.85045525,0.0001452,2]
[334890371,1723627852864,-216.79219296,0.0001452,2]
[334890372,1723627852874,-528.59,0.0001452,2]
[334890373,1723627852884,-500.0,0.0001452,2]
[334890374,1723627852896,-5260.85,0.0001452,2]
[334890375,1723627852906,-452.55867621,0.0001452,2]
[334890376,1723627853090,-55.4691336,0.0001452,2]
[334890377,1723627853102,-500.0,0.0001452,2]
[334890378,1723627853112,-706.1,0.0001452,2]
[334890379,1723627853123,-597.87,0.0001452,2]
[334890380,1723627853133,-508.6740395,0.0001452,2]
[334890381,1723627853143,-500.0,0.0001452,2]
[334890382,1723627853153,-506.90750939,0.0001452,2]
[334890383,1723627853162,-1594.01,0.0001452,2]
[334890384,1723627853172,-500.0,0.0001452,2]
[334890385,1723627853181,-1079.49,0.0001452,2]
[334890386,1723627853190,-1167.87,0.0001452,2]
[334890387,1723627853199,-507.00709407,0.0001452,2]
[334890388,1723627853208,-797.83,0.0001452,2]
[334890389,1723627853218,-500.0,0.0001452,2]
[334890390,1723627853228,-500.0,0.0001452,2]
[334890391,1723627853237,-992.23,0.0001452,2]
[334890392,1723627853246,-233.5990885,0.0001452,2]
[334890393,1723627853258,-266.4009115,0.0001452,2]
[334890394,1723627853268,-500.0,0.0001452,2]
[334890395,1723627853277,-639.2,0.0001452,2]
[334890396,1723627853287,-500.0,0.0001452,2]
[334890397,1723627853295,-462.92000819,0.0001452,2]
[334890398,1723627853317,-202.66902492,8.964e-05,3]
[334890399,1723627853327,-37.07999181,0.0001452,2]
[334890400,1723627853336,-500.0,0.0001452,2]
[334890401,1723627853346,-501.4902127,0.0001452,2]
[334890402,1723627853355,-500.0,0.0001452,2]
[334890403,1723627853364,-915.37,0.0001452,2]
[334890404,1723627853373,-908.61,0.0001452,2]
[334890405,1723627853383,-500.0,0.0001452,2]
[334890406,1723627853392,-500.0,0.0001452,2]
[334890407,1723627853401,-500.0,0.0001452,2]
[334890408,1723627853410,-500.0,0.0001452,2]
[334890409,1723627853419,-500.0,0.0001452,2]
[334890410,1723627853429,-500.0,0.0001452,2]
[334890411,1723627853438,-617.36,0.0001452,2]
[334890412,1723627853448,-500.0,0.0001452,2]
[334890413,1723627853457,-500.0,0.0001452,2]
[334890414,1723627853466,-500.0,0.0001452,2]
[334890415,1723627853476,-500.0,0.0001452,2]
[334890416,1723627853487,-500.0,0.0001452,2]
[334890417,1723627853497,-500.0,0.0001452,2]
[334890418,1723627853509,-545.04631556,0.0001452,2]
[334890419,1723627853519,-500.0,0.0001452,2]
[334890420,1723627853528,-505.75392744,0.0001452,2]
[334890421,1723627853538,-281.75555361,0.0001452,2]
[334890422,1723627853557,-218.24444639,0.0001452,2]
[334890423,1723627853566,-500.0,0.0001452,2]
[334890424,1723627853576,-500.0,0.0001452,2]
[334890425,1723627853586,-500.0,0.0001452,2]
[334890426,1723627853596,-278.97063482,0.0001452,2]
[334890427,1723627853605,-5983.7,0.0001452,2]
[334890428,1723627853615,-500.0,0.0001452,2]
[334890429,1723627853625,-500.0,0.0001452,2]
[334890430,1723627853634,-2701.05,0.0001452,2]
[334890431,1723627853645,-500.0,0.0001452,2]
[334890432,1723627853656,-500.0,0.0001452,2]
[334890433,1723627853667,-905.61,0.0001452,2]
[334890434,1723627853677,-1032.89,0.0001452,2]
[334890435,1723627853686,-500.0,0.0001452,2]
[334890436,1723627853699,-1566.9,0.0001452,2]
[334890437,1723627853709,-500.0,0.0001452,2]
[334890438,1723627853719,-500.0,0.0001452,2]
[334890439,1723627853734,-500.0,0.0001452,2]
[334890440,1723627853744,-853.18,0.0001452,2]
[334890441,1723627853754,-575.98,0.0001452,2]
[334890442,1723627853764,-500.0,0.0001452,2]
[334890443,1723627853774,-521.84,0.0001452,2]
[334890444,1723627853784,-567.6,0.0001452,2]
[334890445,1723627853794,-500.0,0.0001452,2]
[334890446,1723627853804,-500.0,0.0001452,2]
[334890447,1723627853818,-500.0,0.0001452,2]
[334890448,1723627853830,-651.84,0.0001452,2]
[334890449,1723627853840,-500.0,0.0001452,2]
[334890450,1723627853851,-630.08,0.0001452,2]
[334890451,1723627853864,-504.87956161,0.0001452,2]
[334890452,1723627853873,-500.0,0.0001452,2]
[334890453,1723627853885,-500.0,0.0001452,2]
[334890454,1723627853896,-517.24373286,0.0001452,2]
[334890455,1723627853906,-575.68,0.0001452,2]
[334890456,1723627853918,-500.0,0.0001452,2]
[334890457,1723627853927,-500.0,0.0001452,2]
[334890458,1723627853938,-500.0,0.0001452,2]
[334890459,1723627853948,-544.59,0.0001452,2]
[334890460,1723627853957,-500.0,0.0001452,2]
[334890461,1723627853967,-196.577417,0.0001452,2]
[334890462,1723627853978,-13942.21,0.0001452,2]
[334890463,1723627853988,-500.0,0.0001452,2]
[334890464,1723627853998,-500.0,0.00014794,2]
[334890465,1723627854008,-784.93,0.00014794,2]
[334890466,1723627854017,-500.0,0.00014794,2]
[334890467,1723627854027,-500.0,0.00014794,2]
[334890468,1723627854037,-500.0,0.00014794,2]
[334890469,1723627854047,-611.98,0.00014794,2]
[334890470,1723627854057,-561.51,0.00014794,2]
[334890471,1723627854066,-500.0,0.00014794,2]
[334890472,1723627854076,-1014.19,0.00014794,2]
[334890473,1723627854086,-500.0,0.00014794,2]
[334890474,1723627854096,-521.1504451,0.00014794,2]
[334890475,1723627854105,-500.0,0.00014794,2]
[334890476,1723627854115,-693.95,0.00014794,2]
[334890477,1723627854130,-500.0,0.00014794,2]
[334890478,1723627854140,-500.0,0.00014794,2]
[334890479,1723627854150,-500.0,0.00014794,2]
[334890480,1723627854161,-500.0,0.00014794,2]
[334890481,1723627854170,-181.3,0.00014794,2]
[334890482,1723627854181,-500.0,0.00014794,2]
[334890483,1723627854314,-500.0,0.00014794,2]
[334890484,1723627854324,-500.0,0.00014794,2]
[334890485,1723627854334,-500.0,0.00014794,2]
[334890486,1723627854343,-562.6,0.00014794,2]
[334890487,1723627854353,-500.0,0.00014794,2]
[334890488,1723627854363,-500.0,0.00014794,2]
[334890489,1723627854373,-500.0,0.00014794,2]
[334890490,1723627854382,-500.0,0.00014794,2]
[334890491,1723627854394,-500.0,0.00014794,2]
[334890492,1723627854405,-558.59782445,0.00014794,2]
[334890493,1723627854415,-370.3,0.00014794,2]
[334890494,1723627854425,-2358.64,0.00014794,2]
[334890495,1723627854434,-500.0,0.00014794,2]
[334890496,1723627854445,-500.0,0.00014794,2]
[334890497,1723627854455,-500.0,0.00014794,2]
[334890498,1723627854465,-834.05,0.00014794,2]
[334890499,1723627854474,-759.51,0.00014794,2]
[334890500,1723627854484,-516.6647329,0.00014794,2]
[334890501,1723627854493,-500.0,0.00014794,2]
[334890502,1723627854503,-925.56,0.00014794,2]
[334890503,1723627854513,-864.82,0.00014794,2]
[334890504,1723627854523,-500.0,0.00014794,2]
[334890505,1723627854533,-568.31,0.00014794,2]
[334890506,1723627854543,-500.0,0.00014794,2]
[334890507,1723627854553,-500.0,0.00014794,2]
[334890508,1723627854565,-822.07,0.00014794,2]
[334890509,1723627854575,-1032.84,0.00014794,2]
[334890510,1723627854585,-500.0,0.00014794,2]
[334890511,1723627854594,-969.54,0.00014794,2]
[334890512,1723627854605,-500.0,0.00014794,2]
[334890513,1723627854615,-3616.69,0.00014794,2]
[334890514,1723627854625,-500.0,0.00014794,2]
[334890515,1723627854635,-230.64529404,0.00014794,2]
[334890516,1723627854644,-500.0,0.00014794,2]
[334890517,1723627854653,-504.87622052,0.00014794,2]
[334890518,1723627854662,-500.0,0.00014794,2]
[334890519,1723627854672,-831.63,0.00014794,2]
[334890520,1723627854681,-500.0,0.00014794,2]
[334890521,1723627854691,-803.68,0.00014794,2]
[334890522,1723627854700,-528.59,0.00014794,2]
[334890523,1723627854709,-500.0,0.00014794,2]
[334890524,1723627854719,-5260.85,0.00014794,2]
[334890525,1723627854729,-500.0,0.00014794,2]
[334890526,1723627854740,-706.1,0.00014794,2]
[334890527,1723627854750,-597.87,0.00014794,2]
[334890528,1723627854759,-500.0,0.00014794,2]
[334890529,1723627854769,-1594.01,0.00014794,2]
[334890530,1723627854778,-500.0,0.00014794,2]
[334890531,1723627854788,-1079.49,0.00014794,2]
[334890532,1723627854797,-1167.87,0.00014794,2]
[334890533,1723627854808,-797.83,0.00014794,2]
[334890534,1723627854821,-507.77329335,0.00014794,2]
[334890535,1723627854830,-500.0,0.00014794,2]
[334890536,1723627854839,-992.23,0.00014794,2]
[334890537,1723627854848,-500.0,0.00014794,2]
[334890538,1723627854858,-500.0,0.00014794,2]
[334890539,1723627854868,-639.2,0.00014794,2]
[334890540,1723627854877,-500.0,0.00014794,2]
[334890541,1723627854887,-500.0,0.00014794,2]
[334890542,1723627854898,-500.0,0.00014794,2]
[334890543,1723627854907,-500.0,0.00014794,2]
[334890544,1723627854917,-915.37,0.00014794,2]
[334890545,1723627854926,-908.61,0.00014794,2]
[334890546,1723627854935,-229.41337613,0.00014794,2]
[334890547,1723627854945,-500.0,0.00014794,2]
[334890548,1723627854954,-500.0,0.00014794,2]
[334890549,1723627854964,-500.0,0.00014794,2]
[334890550,1723627854974,-500.0,0.00014794,2]
[334890551,1723627854985,-500.0,0.00014794,2]
[334890552,1723627854997,-617.36,0.00014794,2]
[334890553,1723627855006,-500.0,0.00014794,2]
[334890554,1723627855016,-151.0,0.00014794,2]
[334890555,1723627855025,-500.0,0.00014794,2]
[334890556,1723627855035,-500.0,0.00014794,2]
[334890557,1723627855044,-500.0,0.00014794,2]
[334890558,1723627855054,-500.0,0.00014794,2]
[334890559,1723627855065,-500.0,0.00014794,2]
[334890560,1723627855075,-500.0,0.00014794,2]
[334890561,1723627855087,-174.24271622,0.00014794,2]
[334890562,1723627855097,-500.0,0.00014794,2]
[334890563,1723627855106,-500.0,0.00014794,2]
[334890564,1723627855116,-162.949912,0.00014794,2]
[334890565,1723627855126,-506.08203554,0.00014794,2]
[334890566,1723627855135,-162.949912,0.00014794,2]
[334890567,1723627855145,-5983.7,0.00014794,2]
[334890568,1723627855155,-501.71579286,0.00014794,2]
[334890569,1723627855164,-500.0,0.00014794,2]
[334890570,1723627855174,-2701.05,0.00014794,2]
[334890571,1723627855184,-500.0,0.00014794,2]
[334890572,1723627855193,-500.0,0.00014794,2]
[334890573,1723627855203,-905.61,0.00014794,2]
[334890574,1723627855213,-1032.89,0.00014794,2]
[334890575,1723627855222,-508.21369679,0.00014794,2]
[334890576,1723627855232,-1566.9,0.00014794,2]
[334890577,1723627855242,-1440.243406,0.00014794,2]
[334890578,1723627855253,-500.0,0.00014794,2]
[334890579,1723627855263,-500.0,0.00014794,2]
[334890580,1723627855276,-1440.243406,0.00014794,2]
[334890581,1723627855288,-508.39238803,0.00014794,2]
[334890582,1723627855298,-853.18,0.00014794,2]
[334890583,1723627855308,-575.98,0.00014794,2]
[334890584,1723627855317,-500.0,0.00014794,2]
[334890585,1723627855326,-521.84,0.00014794,2]
[334890586,1723627855338,-567.6,0.00014794,2]
[334890588,1723627855347,-500.0,0.00014794,2]
[334890589,1723627855358,-500.0,0.00014794,2]
[334890590,1723627855367,-500.0,0.00014794,2]
[334890591,1723627855377,-651.84,0.00014794,2]
[334890592,1723627855386,-507.81058558,0.00014794,2]
[334890593,1723627855395,-630.08,0.00014794,2]
[334890594,1723627855406,-500.0,0.00014794,2]
[334890595,1723627855417,-500.0,0.00014794,2]
[334890596,1723627855427,-575.68,0.00014794,2]
[334890597,1723627855438,-500.0,0.00014794,2]
[334890598,1723627855448,-503.90051778,0.00014794,2]
[334890599,1723627855457,-500.0,0.00014794,2]
[334890600,1723627855466,-544.59,0.00014794,2]
[334890601,1723627855475,-507.60738411,0.00014794,2]
[334890602,1723627855486,-13942.21,0.00014794,2]
[334890603,1723627855497,-500.0,0.00014794,2]
[334890604,1723627855506,-179.76679732,0.00015,2]
[334890605,1723627855517,-500.0,0.00015068,2]
[334890606,1723627855527,-784.93,0.00015068,2]
[334890607,1723627855538,-500.0,0.00015068,2]
[334890608,1723627855547,-500.0,0.00015068,2]
[334890609,1723627855556,-500.0,0.00015068,2]
[334890610,1723627855566,-611.98,0.00015068,2]
[334890611,1723627855575,-561.51,0.00015068,2]
[334890612,1723627855584,-500.0,0.00015068,2]
[334890613,1723627855593,-1014.19,0.00015068,2]
[334890614,1723627855603,-386.44236912,0.00015068,2]
[334890615,1723627855612,-500.0,0.00015068,2]
[334890616,1723627855621,-693.95,0.00015068,2]
[334890617,1723627855630,-500.0,0.00015068,2]
[334890618,1723627855640,-500.0,0.00015068,2]
[334890619,1723627855650,-416.53,0.00015068,2]
[334890620,1723627855660,-500.0,0.00015068,2]
[334890621,1723627855669,-500.0,0.00015068,2]
[334890622,1723627855678,-500.0,0.00015068,2]
[334890623,1723627855687,-500.0,0.00015068,2]
[334890624,1723627855697,-500.0,0.00015068,2]
[334890625,1723627855706,-562.6,0.00015068,2]
[334890626,1723627855716,-500.0,0.00015068,2]
[334890627,1723627855726,-500.0,0.00015068,2]
[334890628,1723627855735,-500.0,0.00015068,2]
[334890629,1723627855745,-500.0,0.00015068,2]
[334890630,1723627855754,-2358.64,0.00015068,2]
[334890631,1723627855763,-500.0,0.00015068,2]
[334890632,1723627855772,-508.42738621,0.00015068,2]
[334890633,1723627855782,-500.0,0.00015068,2]
[334890634,1723627855791,-834.05,0.00015068,2]
[334890635,1723627855801,-759.51,0.00015068,2]
[334890636,1723627855815,-466.16,0.00015068,2]
[334890637,1723627855824,-925.56,0.00015068,2]
[334890638,1723627855833,-864.82,0.00015068,2]
[334890639,1723627855843,-500.0,0.00015068,2]
[334890640,1723627855853,-568.31,0.00015068,2]
[334890641,1723627855863,-511.96731237,0.00015068,2]
[334890642,1723627855872,-500.0,0.00015068,2]
[334890643,1723627855882,-822.07,0.00015068,2]
[334890644,1723627855894,-1032.84,0.00015068,2]
[334890645,1723627855904,-500.0,0.00015068,2]
[334890646,1723627855914,-969.54,0.00015068,2]
[334890647,1723627855925,-500.0,0.00015068,2]
[334890648,1723627855936,-3616.69,0.00015068,2]
[334890649,1723627855945,-500.0,0.00015068,2]
[334890650,1723627855955,-500.0,0.00015068,2]
[334890651,1723627855965,-500.0,0.00015068,2]
[334890652,1723627855975,-831.63,0.00015068,2]
[334890653,1723627855985,-500.0,0.00015068,2]
[334890654,1723627855996,-803.68,0.00015068,2]
[334890655,1723627856007,-528.59,0.00015068,2]
[334890656,1723627856017,-500.0,0.00015068,2]
[334890657,1723627856027,-5260.85,0.00015068,2]
[334890658,1723627856037,-500.0,0.00015068,2]
[334890659,1723627856047,-706.1,0.00015068,2]
[334890660,1723627856056,-597.87,0.00015068,2]
[334890661,1723627856070,-500.0,0.00015068,2]
[334890662,1723627856081,-1594.01,0.00015068,2]
[334890663,1723627856092,-500.0,0.00015068,2]
[334890664,1723627856102,-1079.49,0.00015068,2]
[334890665,1723627856112,-1167.87,0.00015068,2]
[334890666,1723627856122,-797.83,0.00015068,2]
[334890667,1723627856132,-500.0,0.00015068,2]
[334890668,1723627856141,-992.23,0.00015068,2]
[334890669,1723627856151,-500.0,0.00015068,2]
[334890670,1723627856160,-500.0,0.00015068,2]
[334890671,1723627856169,-639.2,0.00015068,2]
[334890672,1723627856178,-500.0,0.00015068,2]
[334890673,1723627856187,-500.0,0.00015068,2]
[334890674,1723627856196,-500.0,0.00015068,2]
[334890675,1723627856206,-527.36752522,0.00015068,2]
[334890676,1723627856216,-915.37,0.00015068,2]
[334890677,1723627856226,-908.61,0.00015068,2]
[334890678,1723627856235,-620.49818979,0.00015068,2]
[334890679,1723627856245,-500.0,0.00015068,2]
[334890680,1723627856255,-500.0,0.00015068,2]
[334890681,1723627856266,-261.79358341,0.00015068,2]
[334890682,1723627856276,-500.0,0.00015068,2]
[334890683,1723627856287,-617.36,0.00015068,2]
[334890684,1723627856296,-500.0,0.00015068,2]
[334890685,1723627856305,-516.87368999,0.00015068,2]
[334890686,1723627856315,-541.94527567,0.00015068,2]
[334890687,1723627856325,-500.0,0.00015068,2]
[334890688,1723627856335,-500.0,0.00015068,2]
[334890689,1723627856344,-500.0,0.00015068,2]
[334890690,1723627856354,-500.0,0.00015068,2]
[334890691,1723627856363,-500.0,0.00015068,2]
[334890692,1723627856374,-385.35687083,0.00015068,2]
[334890693,1723627857060,-156.93178488,7.884e-05,2]
[334890694,1723627857076,-8840.23662851,7.884e-05,2]
[334890695,1723627857086,-160.36529473,7.9e-05,2]
[334890696,1723627857095,-154.77557542,9.267e-05,2]
[334890697,1723627857104,-837.38,0.00010959,2]
[334890698,1723627857114,-358.0,0.00013501,2]
[334890699,1723627857123,-358.0,0.00013501,2]
[334890700,1723627857133,-358.0,0.00013501,2]
[334890701,1723627857142,-358.0,0.00013501,2]
[334890702,1723627857152,-500.0,0.00013698,2]
[334890703,1723627857162,-500.0,0.00013698,2]
[334890704,1723627857172,-500.0,0.00013972,2]
[334890705,1723627857181,-20784.67491515,0.00013999,2]
[334890706,1723627857190,-500.0,0.00014246,2]
[334890707,1723627857199,-500.0,0.0001452,2]
[334890708,1723627857208,-196.577417,0.0001452,2]
[334890709,1723627857218,-500.0,0.0001452,2]
[334890710,1723627857227,-500.0,0.00014794,2]
[334890711,1723627857237,-500.0,0.00014794,2]
[334890712,1723627857247,-114.64312917,0.00015068,2]
[334890713,1723627857257,-5983.7,0.00015068,2]
[334890714,1723627857267,-507.1729502,0.00015068,2]
[334890715,1723627857278,-2701.05,0.00015068,2]
[334890716,1723627857289,-500.0,0.00015068,2]
[334890717,1723627857299,-500.0,0.00015068,2]
[334890718,1723627857308,-905.61,0.00015068,2]
[334890719,1723627857318,-1032.89,0.00015068,2]
[334890720,1723627857327,-1566.9,0.00015068,2]
[334890721,1723627857337,-500.0,0.00015068,2]
[334890722,1723627857346,-500.0,0.00015068,2]
[334890723,1723627857356,-853.18,0.00015068,2]
[334890724,1723627857366,-575.98,0.00015068,2]
[334890725,1723627857377,-559.11588219,0.00015068,2]
[334890726,1723627857388,-521.84,0.00015068,2]
[334890727,1723627857399,-567.6,0.00015068,2]
[334890728,1723627857411,-501.00994592,0.00015068,2]
[334890729,1723627857423,-500.0,0.00015068,2]
[334890730,1723627857434,-651.84,0.00015068,2]
[334890731,1723627857444,-500.0,0.00015068,2]
[334890732,1723627857454,-630.08,0.00015068,2]
[334890733,1723627857464,-500.0,0.00015068,2]
[334890734,1723627857474,-500.0,0.00015068,2]
[334890735,1723627857484,-575.68,0.00015068,2]
[334890736,1723627857493,-523.60849435,0.00015068,2]
[334890737,1723627857503,-500.0,0.00015068,2]
[334890738,1723627857511,-544.59,0.00015068,2]
[334890739,1723627857521,-13942.21,0.00015068,2]
[334890740,1723627857530,-500.0,0.00015068,2]
[334890741,1723627857540,-500.0,0.00015068,2]
[334890742,1723627857550,-500.0,0.00015068,2]
[334890743,1723627857562,-1501.13498807,0.0001512,2]
[334890744,1723627857572,-2754.60630629,0.00015121,2]
[334890745,1723627857582,-1110.22317588,0.00015163,2]
[334890746,1723627857592,-500.0,0.00015342,2]
[334890747,1723627857601,-784.93,0.00015342,2]
[334890748,1723627857611,-500.0,0.00015342,2]
[334890749,1723627857620,-585.39320816,0.00015342,2]
[334890750,1723627857631,-500.0,0.00015342,2]
[334890751,1723627857642,-611.98,0.00015342,2]
[334890752,1723627857652,-561.51,0.00015342,2]
[334890753,1723627857661,-500.0,0.00015342,2]
[334890754,1723627857671,-1014.19,0.00015342,2]
[334890755,1723627857681,-500.0,0.00015342,2]
[334890756,1723627857692,-693.95,0.00015342,2]
[334890757,1723627857702,-500.0,0.00015342,2]
[334890758,1723627857712,-500.0,0.00015342,2]
[334890759,1723627857721,-500.0,0.00015342,2]
[334890760,1723627857730,-500.0,0.00015342,2]
[334890761,1723627857740,-500.0,0.00015342,2]
[334890762,1723627857749,-500.0,0.00015342,2]
[334890763,1723627857759,-500.0,0.00015342,2]
[334890764,1723627857769,-562.6,0.00015342,2]
[334890765,1723627857779,-500.0,0.00015342,2]
[334890766,1723627857788,-500.0,0.00015342,2]
[334890767,1723627857799,-265.85,0.00015342,2]
[334890768,1723627857812,-500.0,0.00015342,2]
[334890769,1723627857827,-2358.64,0.00015342,2]
[334890770,1723627857837,-223.49,0.00015342,2]
[334890771,1723627857846,-500.0,0.00015342,2]
[334890772,1723627857856,-834.05,0.00015342,2]
[334890773,1723627857867,-759.51,0.00015342,2]
[334890774,1723627857876,-925.56,0.00015342,2]
[334890775,1723627857887,-864.82,0.00015342,2]
[334890776,1723627857898,-500.0,0.00015342,2]
[334890777,1723627857908,-568.31,0.00015342,2]
[334890778,1723627857918,-258.32,0.00015342,2]
[334890779,1723627857929,-822.07,0.00015342,2]
[334890780,1723627857939,-1032.84,0.00015342,2]
[334890781,1723627857951,-500.0,0.00015342,2]
[334890782,1723627857960,-969.54,0.00015342,2]
[334890783,1723627857970,-500.0,0.00015342,2]
[334890784,1723627857980,-3616.69,0.00015342,2]
[334890785,1723627857991,-500.0,0.00015342,2]
[334890786,1723627858002,-500.0,0.00015342,2]
[334890787,1723627858012,-456.90848883,0.00015342,2]
[334890788,1723627858024,-831.63,0.00015342,2]
[334890789,1723627858034,-803.68,0.00015342,2]
[334890790,1723627858044,-506.32307795,0.00015342,2]
[334890791,1723627858053,-528.59,0.00015342,2]
[334890792,1723627858063,-500.0,0.00015342,2]
[334890793,1723627858072,-5260.85,0.00015342,2]
[334890794,1723627858081,-504.52355446,0.00015342,2]
[334890795,1723627858092,-706.1,0.00015342,2]
[334890796,1723627858102,-597.87,0.00015342,2]
[334890797,1723627858111,-507.17426552,0.00015342,2]
[334890798,1723627858121,-1594.01,0.00015342,2]